bitfinex/quotes_SOLUSD_20241216
["timestamp","ask_amount","ask_price","bid_price","bid_amount"]
[1734356975960,9.06202445,215.85,215.79,9.06202445]
[1734356976126,0.12549,215.84,215.79,9.06202445]
[1734356977329,0.12549,215.85,215.8,9.06202445]
[1734356977629,0.12549,215.85,215.83,9.06202445]
[1734356977834,0.12549,215.85,215.83,9.75681933]
[1734356978047,0.12549,215.88,215.83,9.75681933]
[1734356979334,9.06202445,215.88,215.83,0.69479488]
[1734356979562,0.12549,215.87,215.82,9.06202445]
[1734356981562,0.12549,215.87,215.81,33.53374099]
[1734356981737,0.12549,215.87,215.82,9.06202445]
[1734356982068,0.12549,215.87,215.83,0.6948175]
[1734356982792,9.06202445,215.9,215.83,9.75684195]
[1734356983161,0.12549,215.88,215.83,9.75684195]
[1734356983555,0.12549,215.88,215.83,0.6948175]
[1734356983787,0.12549,215.88,215.83,32.83890845]
[1734356985658,0.12549,215.88,215.83,23.776884]
[1734356989357,9.18751445,215.87,215.82,0.6948107]
[1734356989590,9.18751445,215.87,215.81,9.75688817]
[1734356990611,9.18751445,215.87,215.81,9.06202445]
[1734356992096,9.18751445,215.87,215.79,23.776884]
[1734356992410,9.18751445,215.87,215.8,9.7569219]
[1734356994111,9.18751445,215.87,215.81,9.06202445]
[1734356994816,0.12549,215.87,215.82,9.06202445]
[1734356995183,9.18751445,215.87,215.81,9.06202445]
[1734356999739,9.18751445,215.84,215.78,23.776884]
[1734356999903,0.12549,215.82,215.77,15.70432445]
[1734357000332,0.12549,215.82,215.79,9.06202445]
[1734357000744,0.12549,215.84,215.79,9.06202445]
[1734357002006,9.18751445,215.85,215.78,0.69500756]
[1734357002343,0.12549,215.83,215.78,9.75703201]
[1734357002712,0.12549,215.8,215.73,0.69497291]
[1734357003018,0.12549,215.78,215.73,0.69497291]
[1734357003223,0.12549,215.77,215.72,10.06202445]
[1734357003432,0.12549,215.77,215.76,9.06202445]
[1734357003837,9.18751445,215.84,215.76,9.06202445]
[1734357004022,9.18751445,215.84,215.78,9.06202445]
[1734357004552,1.5728,215.91,215.75,23.776884]
[1734357004553,0.12549,215.82,215.75,23.776884]
[1734357004722,0.12549,215.82,215.77,9.06202445]
[1734357005584,9.06202445,215.82,215.76,9.06202445]
[1734357005869,0.12549,215.81,215.76,9.06202445]
[1734357006070,9.18751445,215.81,215.75,9.06202445]
[1734357006388,0.12549,215.79,215.74,9.06202445]
[1734357006877,0.12549,215.77,215.72,10.06202445]
[1734357008157,0.12549,215.78,215.73,9.06202445]
[1734357009665,0.12549,215.77,215.72,10.06202445]
[1734357010365,0.12549,215.78,215.73,9.06202445]
[1734357011694,0.12549,215.77,215.72,10.06202445]
[1734357012193,9.18751445,215.75,215.72,1.0]
[1734357013776,0.12549,215.73,215.72,1.0]
[1734357015005,36.2480978,215.82,215.72,1.0]
[1734357015216,9.06202445,215.76,215.72,1.0]
[1734357015368,0.12549,215.75,215.72,10.06202445]
[1734357015574,0.12549,215.75,215.73,9.06202445]
[1734357015776,0.12549,215.75,215.72,1.0]
[1734357016888,9.06202445,215.77,215.72,1.0]
[1734357016889,0.12549,215.76,215.72,1.0]
[1734357017204,0.12549,215.76,215.72,1.69520465]
[1734357017411,0.12549,215.76,215.73,9.06202445]
[1734357017774,0.12549,215.78,215.72,10.7572291]
[1734357018688,9.06202445,215.81,215.75,9.06202445]
[1734357018871,9.06202445,215.81,215.75,9.75706798]
[1734357019282,9.18751445,215.8,215.75,0.69504353]
[1734357019704,9.18751445,215.8,215.73,23.776884]
[1734357019705,9.18751445,215.8,215.73,24.47196359]
[1734357019924,0.12549,215.78,215.73,24.47196359]
[1734357020824,0.12549,215.77,215.73,24.47196359]
[1734357021430,9.18751445,215.77,215.73,24.47196359]
[1734357022021,0.12549,215.77,215.73,24.47196359]
[1734357022696,0.12549,215.77,215.73,0.69507959]
[1734357023026,9.18751445,215.74,215.72,1.0]
[1734357023324,0.12549,215.74,215.72,1.0]
[1734357023998,9.18751445,215.73,215.72,1.0]
[1734357025099,0.12549,215.73,215.72,1.0]
[1734357026916,9.18751445,215.73,215.72,0.8746]
[1734357027226,0.12549,215.73,215.72,0.8746]
[1734357027471,9.18751445,215.73,215.72,0.8746]
[1734357027761,0.12549,215.73,215.72,0.8746]
[1734357028546,9.18751445,215.73,215.72,0.8746]
[1734357029640,9.18751445,215.73,215.72,0.7492]
[1734357032731,0.12549,215.73,215.72,0.7492]
[1734357032930,9.18751445,215.73,215.72,0.7492]
[1734357035959,0.12549,215.73,215.72,0.7492]
[1734357036138,9.18751445,215.73,215.72,0.7492]
[1734357037459,0.12549,215.73,215.72,0.7492]
[1734357040838,1.5534,215.83,215.72,10.50641965]
[1734357041038,9.06202445,215.79,215.73,9.06202445]
[1734357041343,9.18751445,215.78,215.72,10.50641965]
[1734357041741,0.12549,215.76,215.72,1.4443952]
[1734357045367,9.06202445,215.77,215.72,0.7492]
[1734357045561,0.12549,215.76,215.72,0.7492]
[1734357045756,9.18751445,215.76,215.72,0.7492]
[1734357047578,0.12549,215.74,215.72,0.7492]
[1734357048779,9.06202445,215.74,215.72,0.7492]
[1734357049072,9.06202445,215.75,215.72,0.7492]
[1734357049279,0.12549,215.74,215.72,0.7492]
[1734357051278,0.12549,215.73,215.72,0.7492]
[1734357053145,20.0,215.79,215.72,0.7492]
[1734357053374,1.5534,215.83,215.72,0.7492]
[1734357053552,1.5534,215.83,215.72,9.81122445]
[1734357053752,9.06202445,215.79,215.72,9.81122445]
[1734357053975,9.06202445,215.78,215.72,9.81122445]
[1734357054151,0.12549,215.77,215.72,9.81122445]
[1734357055282,0.12549,215.76,215.72,0.7492]
[1734357057344,0.12549,215.75,215.72,0.7492]
[1734357058171,0.12549,215.76,215.72,0.7492]
[1734357058868,0.12549,215.75,215.72,0.7492]
[1734357059470,9.06202445,215.77,215.72,0.7492]
[1734357060166,1.5534,215.83,215.72,0.7492]
[1734357060167,0.12549,215.75,215.72,0.7492]
[1734357060785,0.12549,215.74,215.72,0.7492]
[1734357061007,9.18751445,215.74,215.72,0.7492]
[1734357062002,0.12549,215.74,215.72,0.7492]
[1734357067530,9.18751445,215.73,215.72,0.7492]
[1734357069715,0.12549,215.73,215.72,0.7492]
[1734357070292,9.06202445,215.73,215.72,0.7492]
[1734357070495,9.18751445,215.73,215.72,0.7492]
[1734357071101,0.12549,215.73,215.72,0.7492]
[1734357071430,9.06202445,215.76,215.72,0.7492]
[1734357072235,9.18751445,215.75,215.72,0.7492]
[1734357073233,9.18751445,215.73,215.72,0.7492]
[1734357073437,9.18751445,215.73,215.72,0.6238]
[1734357077038,36.2480978,215.82,215.72,0.6238]
[1734357077209,9.06202445,215.75,215.72,0.6238]
[1734357077422,0.12549,215.73,215.72,0.6238]
[1734357077930,9.18751445,215.73,215.72,0.6238]
[1734357080036,9.18751445,215.73,215.72,0.4984]
[1734357083312,9.18751445,215.73,215.72,0.373]
[1734357083847,9.06202445,215.73,215.72,0.373]
[1734357084310,9.18751445,215.73,215.72,0.373]
[1734357088913,9.18751445,215.73,215.72,0.2476]
[1734357094237,0.12549,215.73,215.72,0.2476]
[1734357094627,9.06202445,215.73,215.72,0.2476]
[1734357095441,9.18751445,215.73,215.72,0.2476]
[1734357099921,9.18751445,215.73,215.72,0.1222]
[1734357105222,9.06202445,215.73,215.72,0.1222]
[1734357105451,0.12549,215.72,215.65,6.5744]
[1734357105760,0.12549,215.67,215.65,6.5744]
[1734357106373,0.12549,215.66,215.65,6.5744]
[1734357107168,9.18751445,215.66,215.65,6.5744]
[1734357108860,9.06202445,215.66,215.6,6.6622]
[1734357109049,9.06202445,215.66,215.6,15.72422445]
[1734357111262,36.2480978,215.71,215.6,6.6622]
[1734357111473,9.06202445,215.63,215.6,6.6622]
[1734357111836,9.06202445,215.64,215.6,6.6622]
[1734357112729,0.12549,215.63,215.6,6.6622]
[1734357112928,0.12549,215.63,215.6,15.72422445]
[1734357115274,0.12549,215.64,215.6,15.72422445]
[1734357115780,0.12549,215.64,215.61,23.776884]
[1734357116577,9.06202445,215.64,215.61,23.776884]
[1734357120687,1.6554,215.79,215.63,32.83890845]
[1734357120892,9.06202445,215.71,215.66,9.06202445]
[1734357121053,9.06202445,215.71,215.67,29.898184]
[1734357121473,9.18751445,215.7,215.67,29.898184]
[1734357121680,0.12549,215.7,215.67,29.898184]
[1734357124063,21.6554,215.79,215.67,29.898184]
[1734357124260,9.06202445,215.71,215.67,29.898184]
[1734357124685,0.12549,215.7,215.67,29.898184]
[1734357126283,9.06202445,215.7,215.67,29.898184]
[1734357126452,9.06202445,215.69,215.67,29.898184]
[1734357128201,9.06202445,215.69,215.67,6.1213]
[1734357128982,0.12549,215.68,215.67,6.1213]
[1734357129589,0.12549,215.69,215.67,6.1213]
[1734357130297,9.06202445,215.71,215.67,6.1213]
[1734357130601,9.06202445,215.7,215.67,6.1213]
[1734357130786,21.6554,215.79,215.67,6.1213]
[1734357130991,9.06202445,215.72,215.68,24.47219531]
[1734357131202,20.0,215.79,215.68,24.47219531]
[1734357131203,9.06202445,215.73,215.68,24.47219531]
[1734357131873,9.06202445,215.72,215.68,24.47219531]
[1734357132984,9.06202445,215.73,215.68,24.47219531]
[1734357133384,9.06202445,215.72,215.68,24.47219531]
[1734357134696,0.12549,215.71,215.68,24.47219531]
[1734357135209,0.12549,215.68,215.67,6.1213]
[1734357135703,9.06202445,215.72,215.67,29.898184]
[1734357136097,0.12549,215.71,215.68,23.776884]
[1734357136485,9.18751445,215.71,215.68,23.776884]
[1734357137193,9.18751445,215.71,215.67,6.1213]
[1734357139022,9.06202445,215.7,215.67,6.1213]
[1734357139612,9.06202445,215.69,215.67,6.1213]
[1734357139816,9.06202445,215.71,215.67,6.1213]
[1734357140051,9.06202445,215.7,215.67,6.1213]
[1734357140173,20.0,215.79,215.67,6.1213]
[1734357140377,9.06202445,215.7,215.67,6.1213]
[1734357140604,9.06202445,215.69,215.64,23.776884]
[1734357141584,9.06202445,215.68,215.64,23.776884]
[1734357141791,1.5375,215.78,215.64,23.776884]
[1734357141792,9.06202445,215.67,215.64,23.776884]
[1734357142184,9.06202445,215.68,215.64,23.776884]
[1734357144940,0.12549,215.67,215.64,23.776884]
[1734357145908,20.12549,215.77,215.64,23.776884]
[1734357146238,0.12549,215.67,215.64,23.776884]
[1734357147735,0.12549,215.68,215.64,23.776884]
[1734357152017,9.18751445,215.68,215.64,23.776884]
[1734357152224,9.06202445,215.68,215.64,23.776884]
[1734357152547,9.06202445,215.67,215.63,23.776884]
[1734357155242,9.18751445,215.66,215.62,6.6236]
[1734357155437,0.12549,215.66,215.63,23.776884]
[1734357156462,9.06202445,215.68,215.63,23.776884]
[1734357157930,3.42310401,215.78,215.63,23.776884]
[1734357157931,9.06202445,215.69,215.63,32.83890845]
[1734357158730,1.5375,215.78,215.65,23.776884]
[1734357158950,1.5375,215.78,215.67,23.776884]
[1734357159143,9.06202445,215.72,215.67,23.776884]
[1734357159330,9.06202445,215.71,215.66,23.776884]
[1734357160644,0.12549,215.7,215.66,23.26114631]
[1734357162594,0.12549,215.69,215.64,9.06202445]
[1734357162927,9.18751445,215.69,215.63,9.75735098]
[1734357164062,9.18751445,215.69,215.64,23.776884]
[1734357165267,9.06202445,215.68,215.64,23.776884]
[1734357165474,9.06202445,215.67,215.63,23.776884]
[1734357165634,9.06202445,215.64,215.62,6.6236]
[1734357165834,9.06202445,215.65,215.62,6.6236]
[1734357166074,4.3657,215.78,215.62,6.6236]
[1734357166075,24.3657,215.78,215.63,23.776884]
[1734357166282,24.3657,215.78,215.65,23.776884]
[1734357166463,9.06202445,215.69,215.65,23.776884]
[1734357171676,0.12549,215.68,215.65,23.776884]
[1734357171841,0.12549,215.68,215.64,23.776884]
[1734357172044,9.06202445,215.68,215.64,23.776884]
[1734357172349,0.12549,215.67,215.64,23.776884]
[1734357175052,1.5375,215.78,215.65,0.69541396]
[1734357175362,0.12549,215.68,215.64,32.83890845]
[1734357176359,0.12549,215.68,215.64,23.776884]
[1734357177472,1.5375,215.78,215.66,32.83890845]
[1734357177681,9.06202445,215.72,215.68,23.776884]
[1734357177851,1.5375,215.78,215.68,23.776884]
[1734357178049,9.06202445,215.72,215.68,23.776884]
[1734357179285,9.18751445,215.71,215.67,23.776884]
[1734357179496,9.18751445,215.71,215.66,23.776884]
[1734357180069,9.06202445,215.7,215.66,23.776884]
[1734357180357,0.12549,215.69,215.66,23.776884]
[1734357181480,0.12549,215.77,215.66,23.776884]
[1734357181674,0.12549,215.7,215.66,23.776884]
[1734357182989,1.5375,215.78,215.68,23.776884]
[1734357183295,36.2480978,215.82,215.7,23.776884]
[1734357183460,9.06202445,215.75,215.7,23.776884]
[1734357183853,36.2480978,215.82,215.7,23.776884]
[1734357184061,9.06202445,215.75,215.7,23.776884]
[1734357186680,0.12549,215.74,215.7,23.776884]
[1734357187067,0.12549,215.74,215.7,32.83890845]
[1734357187379,0.12549,215.75,215.7,32.83890845]
[1734357187697,0.12549,215.75,215.7,23.776884]
[1734357187997,9.18751445,215.75,215.7,23.776884]
[1734357188981,0.12549,215.81,215.7,23.776884]
[1734357189285,0.12549,215.74,215.7,23.776884]
[1734357190203,0.12549,215.75,215.7,32.83890845]
[1734357192410,1.5424,215.83,215.72,32.83890845]
[1734357192657,0.12549,215.77,215.72,32.83890845]
[1734357195515,9.06202445,215.79,215.74,23.776884]
[1734357195883,0.12549,215.78,215.74,23.776884]
[1734357196096,9.18751445,215.78,215.74,23.776884]
[1734357198136,9.06202445,215.78,215.74,23.776884]
[1734357198301,0.12549,215.77,215.74,23.776884]
[1734357199008,0.12549,215.78,215.74,23.776884]
[1734357203120,2.8282,215.9,215.76,23.776884]
[1734357203324,7.24510019,215.95,215.76,23.776884]
[1734357203325,9.06202445,215.84,215.78,23.776884]
[1734357204203,9.06202445,215.85,215.79,9.06202445]
[1734357204404,9.06202445,215.85,215.8,23.776884]
[1734357204600,36.2480978,215.93,215.8,23.776884]
[1734357204839,9.06202445,215.86,215.8,23.776884]
[1734357205333,9.06202445,215.85,215.8,23.776884]
[1734357205910,36.2480978,215.93,215.8,23.776884]
[1734357205911,9.06202445,215.86,215.8,23.776884]
[1734357209221,9.06202445,215.83,215.8,23.776884]
[1734357209416,0.12549,215.82,215.77,6.1623]
[1734357209635,0.12549,215.82,215.77,15.91931808]
[1734357210937,0.12549,215.82,215.78,23.776884]
[1734357211317,36.2480978,215.93,215.78,23.776884]
[1734357211318,9.06202445,215.84,215.78,32.83890845]
[1734357211733,36.2480978,215.93,215.79,9.75696604]
[1734357211922,9.06202445,215.86,215.8,23.776884]
[1734357212248,0.12549,215.85,215.8,23.776884]
[1734357212446,9.18751445,215.85,215.8,23.776884]
[1734357212926,36.2480978,215.93,215.82,23.776884]
[1734357213111,9.06202445,215.86,215.82,23.776884]
[1734357214750,9.06202445,215.88,215.82,32.83890845]
[1734357214919,9.06202445,215.9,215.84,38.95270845]
[1734357215121,9.06202445,215.91,215.86,23.776884]
[1734357216817,0.12549,215.9,215.86,23.776884]
[1734357217169,1.6016,216.01,215.88,23.776884]
[1734357217461,9.06202445,215.95,215.89,0.69461266]
[1734357218253,0.12549,215.94,215.9,23.776884]
[1734357218420,9.18751445,215.94,215.9,23.776884]
[1734357218613,9.06202445,215.94,215.9,23.776884]
[1734357219015,0.12549,215.93,215.9,23.776884]
[1734357219917,0.12549,215.94,215.9,23.776884]
[1734357220119,0.12549,215.94,215.9,32.83890845]
[1734357220328,36.2480978,216.04,215.92,23.776884]
[1734357220557,9.06202445,215.97,215.92,23.776884]
[1734357220860,9.06202445,215.99,215.94,23.776884]
[1734357221969,9.06202445,215.98,215.94,23.776884]
[1734357222228,0.12549,215.94,215.91,6.5237]
[1734357222442,9.18751445,215.94,215.91,6.5237]
[1734357225348,36.2480978,216.04,215.87,0.69445658]
[1734357225349,9.06202445,215.92,215.87,0.69445658]
[1734357225657,0.12549,215.89,215.86,6.4564]
[1734357225833,9.18751445,215.89,215.86,6.4564]
[1734357228340,0.12549,215.87,215.86,6.4564]
[1734357228660,0.12549,215.87,215.86,30.233284]
[1734357228847,9.18751445,215.87,215.86,6.4564]
[1734357229175,9.18751445,215.87,215.77,7.9587]
[1734357229335,9.06202445,215.81,215.77,7.9587]
[1734357229545,9.06202445,215.82,215.77,7.9587]
[1734357230643,9.06202445,215.82,215.78,23.776884]
[1734357231340,9.06202445,215.83,215.78,23.776884]
[1734357231539,9.06202445,215.84,215.78,32.83890845]
[1734357231742,9.06202445,215.83,215.78,23.776884]
[1734357232631,9.18751445,215.82,215.78,23.776884]
[1734357233662,9.06202445,215.83,215.78,23.776884]
[1734357233859,0.12549,215.82,215.78,23.776884]
[1734357236054,0.12549,215.81,215.78,23.776884]
[1734357238079,9.06202445,215.81,215.78,23.776884]
[1734357238246,9.06202445,215.82,215.78,23.776884]
[1734357241159,0.12549,215.79,215.77,7.9587]
[1734357241344,0.12549,215.79,215.77,6.3775]
[1734357241779,9.06202445,215.82,215.77,6.3775]
[1734357242577,9.06202445,215.82,215.78,23.776884]
[1734357243378,9.06202445,215.8,215.78,23.776884]
[1734357243674,9.06202445,215.8,215.77,6.3775]
[1734357244249,9.06202445,215.79,215.74,23.776884]
[1734357245363,9.18751445,215.78,215.73,23.776884]
[1734357245882,0.12549,215.76,215.72,8.0365]
[1734357246182,9.18751445,215.76,215.72,8.0365]
[1734357246472,0.12549,215.76,215.72,8.0365]
[1734357247968,0.12549,215.75,215.69,20.0]
[1734357248152,0.12549,215.75,215.71,23.776884]
[1734357248355,0.12549,215.75,215.69,0.69522989]
[1734357248564,0.12549,215.74,215.69,9.06202445]
[1734357249091,9.06202445,215.74,215.67,8.92552935]
[1734357249279,9.06202445,215.74,215.68,9.06202445]
[1734357249649,9.06202445,215.73,215.67,8.2303]
[1734357249885,9.06202445,215.73,215.67,17.29232445]
[1734357250955,9.06202445,215.74,215.68,32.83890845]
[1734357251260,9.06202445,215.75,215.68,32.83890845]
[1734357251466,9.06202445,215.75,215.69,9.06202445]
[1734357251668,9.06202445,215.74,215.68,32.83890845]
[1734357254695,1.5387,215.87,215.72,9.06202445]
[1734357254862,9.06202445,215.83,215.77,23.776884]
[1734357255068,9.06202445,215.82,215.77,24.47187925]
[1734357255265,0.12549,215.8,215.77,23.776884]
[1734357255467,9.18751445,215.8,215.76,23.776884]
[1734357255793,9.06202445,215.81,215.75,32.83890845]
[1734357256091,9.18751445,215.8,215.75,23.776884]
[1734357258670,9.06202445,215.79,215.75,23.776884]
[1734357259181,9.06202445,215.78,215.72,32.83890845]
[1734357259564,9.06202445,215.78,215.74,23.776884]
[1734357262379,0.12549,215.77,215.74,23.776884]
[1734357263371,0.12549,215.78,215.74,23.776884]
[1734357264671,9.06202445,215.78,215.74,23.776884]
[1734357264871,9.06202445,215.76,215.7,0.6951228]
[1734357265087,9.06202445,215.75,215.69,9.06202445]
[1734357265289,9.06202445,215.74,215.68,9.75724385]
[1734357265877,0.12549,215.73,215.68,9.75724385]
[1734357266206,0.12549,215.73,215.69,23.776884]
[1734357266411,36.2480978,215.82,215.67,8.2303]
[1734357266412,0.12549,215.71,215.67,8.2303]
[1734357267802,0.12549,215.71,215.68,23.776884]
[1734357268384,0.12549,215.78,215.68,23.776884]
[1734357268587,0.12549,215.71,215.68,23.776884]
[1734357268790,1.6345,215.79,215.69,9.75734585]
[1734357269110,9.06202445,215.77,215.72,23.776884]
[1734357269273,0.12549,215.76,215.72,23.776884]
[1734357269477,9.06202445,215.76,215.72,23.776884]
[1734357274286,0.12549,215.75,215.72,23.776884]
[1734357275317,0.12549,215.76,215.72,23.776884]
[1734357275523,0.12549,215.76,215.74,23.776884]
[1734357275830,0.12549,215.76,215.75,23.776884]
[1734357276329,0.12549,215.78,215.74,23.776884]
[1734357276492,0.12549,215.78,215.75,0.69506601]
[1734357276824,9.18751445,215.79,215.76,23.776884]
[1734357277188,9.06202445,215.8,215.76,23.776884]
[1734357277388,9.06202445,215.81,215.76,23.776884]
[1734357277687,0.12549,215.8,215.76,23.776884]
[1734357278522,9.06202445,215.8,215.76,23.776884]
[1734357278826,9.06202445,215.8,215.75,23.776884]
[1734357280707,0.12549,215.79,215.75,23.776884]
[1734357284605,9.06202445,215.79,215.75,23.776884]
[1734357285521,9.06202445,215.78,215.75,23.776884]
[1734357285908,9.06202445,215.78,215.74,23.776884]
[1734357287012,9.06202445,215.77,215.74,23.776884]
[1734357287203,9.06202445,215.77,215.72,23.776884]
[1734357287821,9.06202445,215.77,215.74,23.776884]
[1734357288020,9.06202445,215.78,215.74,23.776884]
[1734357288829,0.12549,215.77,215.74,23.776884]
[1734357290199,0.12549,215.83,215.74,23.776884]
[1734357290435,1.653,215.84,215.75,9.06202445]
[1734357290729,9.06202445,215.82,215.76,23.776884]
[1734357290897,0.12549,215.81,215.77,0.69497681]
[1734357291096,0.12549,215.81,215.78,23.776884]
[1734357291433,9.18751445,215.81,215.78,23.776884]
[1734357294422,9.06202445,215.82,215.78,23.776884]
[1734357294607,9.06202445,215.83,215.78,23.776884]
[1734357294812,21.5606,215.9,215.78,23.776884]
[1734357295095,9.06202445,215.83,215.78,23.776884]
[1734357296223,9.06202445,215.83,215.78,23.390669]
[1734357299012,0.12549,215.82,215.78,23.390669]
[1734357301148,0.12549,215.81,215.78,23.390669]
[1734357301717,0.12549,215.82,215.78,23.390669]
[1734357302127,1.5606,215.9,215.78,32.45269345]
[1734357302327,9.06202445,215.84,215.78,32.45269345]
[1734357302546,0.12549,215.83,215.8,23.776884]
[1734357305057,9.18751445,215.83,215.8,23.776884]
[1734357305421,9.06202445,215.81,215.75,2.29232798]
[1734357305722,9.06202445,215.79,215.75,0.69492798]
[1734357305921,9.06202445,215.79,215.74,6.3802]
[1734357306351,9.18751445,215.78,215.74,6.3802]
[1734357307126,9.18751445,215.78,215.75,23.776884]
[1734357308062,0.12549,215.78,215.75,23.776884]
[1734357309822,9.06202445,215.8,215.75,23.776884]
[1734357311019,9.06202445,215.79,215.75,23.776884]
[1734357311755,9.06202445,215.8,215.75,23.776884]
[1734357313151,9.18751445,215.79,215.75,23.776884]
[1734357313337,0.12549,215.79,215.75,23.776884]
[1734357315853,9.06202445,215.82,215.77,23.776884]
[1734357316036,20.0,215.89,215.79,23.776884]
[1734357316240,9.06202445,215.83,215.79,23.776884]
[1734357316649,9.06202445,215.83,215.78,23.776884]
[1734357317960,9.06202445,215.82,215.78,23.776884]
[1734357318843,9.06202445,215.83,215.78,23.776884]
[1734357319047,9.06202445,215.84,215.78,32.83890845]
[1734357319234,9.06202445,215.85,215.8,23.776884]
[1734357320361,1.5606,215.9,215.8,23.776884]
[1734357320362,9.18751445,215.84,215.8,23.776884]
[1734357320658,9.18751445,215.84,215.79,23.776884]
[1734357322465,1.5606,215.9,215.79,23.776884]
[1734357322466,0.12549,215.82,215.79,23.776884]
[1734357323448,9.18751445,215.83,215.79,23.776884]
[1734357325061,9.06202445,215.84,215.79,23.776884]
[1734357326148,9.06202445,215.83,215.79,23.776884]
[1734357328874,0.12549,215.82,215.79,23.776884]
[1734357329169,20.0,215.93,215.81,23.776884]
[1734357329370,84.102,215.96,215.85,9.06202445]
[1734357329579,9.06202445,215.92,215.86,32.83890845]
[1734357329957,9.06202445,215.91,215.86,23.776884]
[1734357330268,0.12549,215.9,215.86,23.776884]
[1734357330440,9.18751445,215.9,215.86,23.776884]
[1734357333572,9.18751445,215.9,215.85,23.776884]
[1734357335371,9.06202445,215.89,215.83,32.83890845]
[1734357335673,9.06202445,215.88,215.83,23.776884]
[1734357337792,0.12549,215.87,215.83,23.776884]
[1734357341190,9.06202445,215.86,215.82,23.776884]
[1734357341499,9.06202445,215.85,215.8,0.69490016]
[1734357342278,9.06202445,215.84,215.8,0.69490016]
[1734357342497,9.06202445,215.84,215.79,0.69490875]
[1734357343076,9.06202445,215.84,215.8,23.776884]
[1734357344705,0.12549,215.84,215.8,32.83890845]
[1734357345796,0.12549,215.85,215.82,23.776884]
[1734357346810,0.12549,215.92,215.83,9.06202445]
[1734357346991,9.06202445,215.91,215.84,32.83890845]
[1734357347196,1.602,215.96,215.86,23.776884]
[1734357347381,0.12549,215.9,215.86,23.776884]
[1734357347979,0.12549,215.89,215.86,23.776884]
[1734357348782,9.06202445,215.91,215.86,23.776884]
[1734357350409,9.06202445,215.9,215.84,32.83890845]
[1734357350990,9.06202445,215.9,215.84,23.776884]
[1734357351199,9.06202445,215.89,215.84,23.776884]
[1734357351509,9.06202445,215.88,215.84,23.776884]
[1734357352008,9.06202445,215.9,215.84,32.83890845]
[1734357352181,9.06202445,215.91,215.85,9.06202445]
[1734357352382,9.06202445,215.91,215.86,23.776884]
[1734357352616,0.12549,215.9,215.86,23.776884]
[1734357353179,9.06202445,215.92,215.86,23.776884]
[1734357353383,9.06202445,215.92,215.86,24.4716116]
[1734357353598,0.12549,215.91,215.86,33.53363605]
[1734357354316,9.06202445,215.93,215.87,9.06202445]
[1734357354612,9.06202445,215.93,215.88,23.776884]
[1734357354913,0.12549,215.92,215.88,23.776884]
[1734357355086,0.12549,215.92,215.88,32.83890845]
[1734357355709,0.12549,215.93,215.88,32.83890845]
[1734357357122,9.06202445,215.95,215.89,9.06202445]
[1734357357285,1.5559,216.01,215.92,9.06202445]
[1734357357485,8.06202445,215.99,215.93,23.776884]
[1734357357696,8.06202445,215.99,215.93,33.5333579]
[1734357357890,8.06202445,215.99,215.93,32.83890845]
[1734357360498,1.6519,216.07,215.96,32.83890845]
[1734357360711,9.06202445,216.02,215.96,32.83890845]
[1734357360911,9.18751445,216.01,215.95,32.83890845]
[1734357362300,0.12549,216.01,215.96,9.06202445]
[1734357363893,9.06202445,216.04,215.97,23.776884]
[1734357364094,9.06202445,216.04,215.98,9.06202445]
[1734357364423,0.12549,216.03,215.98,9.06202445]
[1734357364720,0.12549,216.03,215.99,23.776884]
[1734357365230,9.06202445,216.05,215.99,23.776884]
[1734357366922,9.06202445,216.04,215.99,23.776884]
[1734357368595,0.12549,216.03,215.99,23.776884]
[1734357368795,9.06202445,216.05,215.99,23.776884]
[1734357370124,27.03202445,216.06,216.01,23.776884]
[1734357370336,17.97,216.06,216.03,23.776884]
[1734357370627,17.97,216.06,216.03,9.06202445]
[1734357371211,17.97,216.06,216.03,23.776884]
[1734357371902,17.97,216.06,216.03,9.06202445]
[1734357372099,17.97,216.06,216.04,23.776884]
[1734357372854,0.12549,216.05,216.04,23.776884]
[1734357373331,0.12549,216.05,216.04,32.83890845]
[1734357378338,0.12549,216.05,216.04,75.99612466]
[1734357378834,17.97,216.06,216.04,75.99612466]
[1734357379038,17.97,216.06,216.05,32.83890845]
[1734357385239,18.09549,216.06,216.05,23.776884]